[Event "Titled Tuesday Blitz October 5 2021"]
[White "Sadykov, Ramil"]
[Black "Fier, Alexandr"]
[WhiteFideId "24113590"]
[BlackFideId "2107139"]
[WhiteElo "2300"]
[BlackElo "2569"]
[Result "0-1"]
[Round "09"]
[TimeControl "180+1"]
[Date "2021.10.05"]
[WhiteClock "0:00:29"]
[BlackClock "0:02:06"]

1. d4 {[%clk 0:02:12]}  Nf6 {[%clk 0:02:58]} 2. Nc3 {[%clk 0:02:12]}  c5 {[%clk 0:02:54]} 3. d5 {[%clk 0:02:12]}  g6 {[%clk 0:02:54]} 4. e4 {[%clk 0:02:12]}  d6 {[%clk 0:02:55]} 5. Nf3 {[%clk 0:02:11]}  Bg7 {[%clk 0:02:55]} 6. Bb5+ {[%clk 0:02:11]}  Bd7 {[%clk 0:02:55]} 7. a4 {[%clk 0:02:10]}  O-O {[%clk 0:02:55]} 8. O-O {[%clk 0:02:10]}  Bg4 {[%clk 0:02:55]} 9. h3 {[%clk 0:02:09]}  Bxf3 {[%clk 0:02:55]} 10. Qxf3 {[%clk 0:02:10]}  Na6 {[%clk 0:02:52]} 11. Bf4 {[%clk 0:01:56]}  Nc7 {[%clk 0:02:52]} 12. Bc4 {[%clk 0:01:55]}  Nd7 {[%clk 0:02:52]} 13. Qg3 {[%clk 0:01:53]}  a6 {[%clk 0:02:50]} 14. a5 {[%clk 0:01:48]}  Rb8 {[%clk 0:02:49]} 15. Ra2 {[%clk 0:01:46]}  b5 {[%clk 0:02:47]} 16. axb6 {[%clk 0:01:46]}  Rxb6 {[%clk 0:02:48]} 17. Rfa1 {[%clk 0:01:41]}  Qb8 {[%clk 0:02:47]} 18. Bc1 {[%clk 0:01:40]}  Qb7 {[%clk 0:02:46]} 19. Nd1 {[%clk 0:01:27]}  Rb4 {[%clk 0:02:44]} 20. Bd3 {[%clk 0:01:23]}  c4 {[%clk 0:02:40]} 21. Bf1 {[%clk 0:01:23]}  Nc5 {[%clk 0:02:41]} 22. c3 {[%clk 0:01:19]}  Rb6 {[%clk 0:02:34]} 23. Bxc4 {[%clk 0:01:19]}  Nxe4 {[%clk 0:02:32]} 24. Qe3 {[%clk 0:01:12]}  Nf6 {[%clk 0:02:22]} 25. Qxe7 {[%clk 0:01:11]}  Re8 {[%clk 0:02:21]} 26. Bxa6 {[%clk 0:01:04]}  Qb8 {[%clk 0:02:21]} 27. Qxe8+ {[%clk 0:00:52]}  Qxe8 {[%clk 0:02:16]} 28. Bf1 {[%clk 0:00:44]}  Nfxd5 {[%clk 0:02:15]} 29. Ne3 {[%clk 0:00:44]}  Rb8 {[%clk 0:02:13]} 30. Nxd5 {[%clk 0:00:38]}  Nxd5 {[%clk 0:02:14]} 31. Ra7 {[%clk 0:00:38]}  h5 {[%clk 0:02:13]} 32. Bc4 {[%clk 0:00:33]}  Rc8 {[%clk 0:02:05]} 33. Bxd5 {[%clk 0:00:30]}  Qe1+ {[%clk 0:02:05]} 34. Kh2 {[%clk 0:00:29]}  Qe5+ {[%clk 0:02:06]} 0-1


[Site "https://www.chess.com"]

[Event "Titled Tuesday Blitz October 5 2021"]
[White "Sagripanti, Michele"]
[Black "Katzir, Moshe"]
[WhiteFideId "847895"]
[BlackFideId "2802260"]
[WhiteElo "2195"]
[BlackElo "2097"]
[Result "1-0"]
[Round "09"]
[TimeControl "180+1"]
[Date "2021.10.05"]
[WhiteClock "0:00:10"]
[BlackClock "0:00:01"]

1. e4 {[%clk 0:03:00]}  c5 {[%clk 0:02:59]} 2. Nf3 {[%clk 0:02:57]}  a6 {[%clk 0:02:58]} 3. c3 {[%clk 0:02:58]}  d5 {[%clk 0:02:57]} 4. exd5 {[%clk 0:02:58]}  Qxd5 {[%clk 0:02:56]} 5. d4 {[%clk 0:02:58]}  Nf6 {[%clk 0:02:56]} 6. Be2 {[%clk 0:02:57]}  cxd4 {[%clk 0:02:54]} 7. cxd4 {[%clk 0:02:57]}  e6 {[%clk 0:02:54]} 8. Nc3 {[%clk 0:02:57]}  Qd6 {[%clk 0:02:54]} 9. O-O {[%clk 0:02:57]}  Nc6 {[%clk 0:02:53]} 10. Bg5 {[%clk 0:02:56]}  Be7 {[%clk 0:02:52]} 11. Qb3 {[%clk 0:02:45]}  O-O {[%clk 0:02:47]} 12. Rad1 {[%clk 0:02:42]}  Nd5 {[%clk 0:02:42]} 13. Ne4 {[%clk 0:02:24]}  Qd8 {[%clk 0:02:39]} 14. Be3 {[%clk 0:02:20]}  b6 {[%clk 0:02:18]} 15. Bd3 {[%clk 0:02:19]}  h6 {[%clk 0:02:14]} 16. Bb1 {[%clk 0:02:19]}  Bb7 {[%clk 0:02:05]} 17. a3 {[%clk 0:02:14]}  Rc8 {[%clk 0:01:59]} 18. Qd3 {[%clk 0:02:13]}  f5 {[%clk 0:01:57]} 19. Nc3 {[%clk 0:02:09]}  Nxc3 {[%clk 0:01:35]} 20. bxc3 {[%clk 0:02:07]}  Na5 {[%clk 0:01:27]} 21. Bc1 {[%clk 0:02:00]}  Qd5 {[%clk 0:01:19]} 22. Rfe1 {[%clk 0:01:59]}  Bf6 {[%clk 0:01:05]} 23. Re2 {[%clk 0:01:55]}  g5 {[%clk 0:00:59]} 24. Ba2 {[%clk 0:01:51]}  Nc4 {[%clk 0:00:58]} 25. Ne1 {[%clk 0:01:25]}  b5 {[%clk 0:00:53]} 26. f3 {[%clk 0:01:19]}  Bg7 {[%clk 0:00:51]} 27. Nc2 {[%clk 0:01:17]}  Qd7 {[%clk 0:00:44]} 28. Rde1 {[%clk 0:01:15]}  Bd5 {[%clk 0:00:43]} 29. Nb4 {[%clk 0:01:12]}  a5 {[%clk 0:00:34]} 30. Nxd5 {[%clk 0:01:12]}  exd5 {[%clk 0:00:33]} 31. Re7 {[%clk 0:01:11]}  Qd8 {[%clk 0:00:33]} 32. h4 {[%clk 0:01:02]}  Rc7 {[%clk 0:00:25]} 33. Rxc7 {[%clk 0:00:59]}  Qxc7 {[%clk 0:00:25]} 34. hxg5 {[%clk 0:00:59]}  hxg5 {[%clk 0:00:18]} 35. Bxg5 {[%clk 0:01:00]}  Qg3 {[%clk 0:00:18]} 36. Bd2 {[%clk 0:00:52]}  Bh6 {[%clk 0:00:17]} 37. Bxc4 {[%clk 0:00:40]}  bxc4 {[%clk 0:00:16]} 38. Qe2 {[%clk 0:00:38]}  Bg7 {[%clk 0:00:12]} 39. Qf2 {[%clk 0:00:30]}  Qg6 {[%clk 0:00:10]} 40. Bf4 {[%clk 0:00:27]}  Bh6 {[%clk 0:00:08]} 41. Bxh6 {[%clk 0:00:25]}  Qxh6 {[%clk 0:00:08]} 42. Re7 {[%clk 0:00:20]}  f4 {[%clk 0:00:07]} 43. Qe2 {[%clk 0:00:18]}  Rf6 {[%clk 0:00:03]} 44. Re8+ {[%clk 0:00:15]}  Rf8 {[%clk 0:00:04]} 45. Qe6+ {[%clk 0:00:12]}  Qxe6 {[%clk 0:00:02]} 46. Rxe6 {[%clk 0:00:13]}  Rb8 {[%clk 0:00:02]} 47. Re5 {[%clk 0:00:09]}  Rb3 {[%clk 0:00:01]} 48. Rxd5 {[%clk 0:00:10]}  Rxc3 {[%clk 0:00:02]} 49. Rxa5 {[%clk 0:00:10]}  Rc1+ {[%clk 0:00:01]} 50. Kh2 {[%clk 0:00:10]} 1-0


[Site "https://www.chess.com"]

[Event "Titled Tuesday Blitz October 5 2021"]
[White "Salimova, Nurgyul"]
[Black "Isajevsky, Anton"]
[WhiteFideId "2915138"]
[BlackFideId "4142500"]
[WhiteElo "2071"]
[BlackElo "2510"]
[Result "1-0"]
[Round "09"]
[TimeControl "180+1"]
[Date "2021.10.05"]
[WhiteClock "0:00:54"]
[BlackClock "0:00:12"]

1. e4 {[%clk 0:03:00]}  g6 {[%clk 0:02:54]} 2. d4 {[%clk 0:03:01]}  Bg7 {[%clk 0:02:54]} 3. Nc3 {[%clk 0:03:01]}  d6 {[%clk 0:02:53]} 4. Be3 {[%clk 0:03:01]}  c6 {[%clk 0:02:52]} 5. h4 {[%clk 0:02:58]}  h5 {[%clk 0:02:51]} 6. Qd2 {[%clk 0:02:55]}  Nd7 {[%clk 0:02:50]} 7. Nh3 {[%clk 0:02:55]}  Ngf6 {[%clk 0:02:45]} 8. f3 {[%clk 0:02:52]}  b5 {[%clk 0:02:45]} 9. Ng5 {[%clk 0:02:50]}  Qc7 {[%clk 0:02:42]} 10. O-O-O {[%clk 0:02:48]}  Nb6 {[%clk 0:02:17]} 11. e5 {[%clk 0:02:45]}  Nfd5 {[%clk 0:02:17]} 12. Nxd5 {[%clk 0:02:38]}  Nxd5 {[%clk 0:02:16]} 13. e6 {[%clk 0:02:35]}  f6 {[%clk 0:02:00]} 14. Qd3 {[%clk 0:02:13]}  f5 {[%clk 0:01:22]} 15. Bd2 {[%clk 0:02:12]}  Bf6 {[%clk 0:01:15]} 16. Re1 {[%clk 0:02:10]}  Ba6 {[%clk 0:00:59]} 17. g4 {[%clk 0:02:09]}  hxg4 {[%clk 0:00:37]} 18. fxg4 {[%clk 0:02:10]}  O-O-O {[%clk 0:00:36]} 19. Nf7 {[%clk 0:02:06]}  Rxh4 {[%clk 0:00:36]} 20. Bg2 {[%clk 0:01:49]}  Rxh1 {[%clk 0:00:29]} 21. Rxh1 {[%clk 0:01:50]}  Rf8 {[%clk 0:00:27]} 22. g5 {[%clk 0:01:21]}  Bg7 {[%clk 0:00:25]} 23. Rh7 {[%clk 0:01:21]}  Rg8 {[%clk 0:00:25]} 24. Nh6 {[%clk 0:01:14]}  Bxh6 {[%clk 0:00:23]} 25. gxh6 {[%clk 0:01:15]}  Nf6 {[%clk 0:00:22]} 26. Rf7 {[%clk 0:01:09]}  d5 {[%clk 0:00:16]} 27. Qa3 {[%clk 0:00:58]}  Bb7 {[%clk 0:00:12]} 28. Qxe7 {[%clk 0:00:54]} 1-0


[Site "https://www.chess.com"]

[Event "Titled Tuesday Blitz October 5 2021"]
[White "Seletsky, Grigory"]
[Black "Pastar, Slaven"]
[WhiteFideId "14112191"]
[BlackFideId "14402718"]
[WhiteElo "2492"]
[BlackElo "2198"]
[Result "1-0"]
[Round "09"]
[TimeControl "180+1"]
[Date "2021.10.05"]
[WhiteClock "0:00:38"]
[BlackClock "0:00:02"]

1. e4 {[%clk 0:02:58]}  b6 {[%clk 0:03:00]} 2. d4 {[%clk 0:02:57]}  Bb7 {[%clk 0:03:01]} 3. f3 {[%clk 0:02:58]}  e6 {[%clk 0:03:00]} 4. c3 {[%clk 0:02:57]}  c5 {[%clk 0:03:01]} 5. Bd3 {[%clk 0:02:56]}  cxd4 {[%clk 0:03:00]} 6. cxd4 {[%clk 0:02:56]}  Bb4+ {[%clk 0:02:59]} 7. Nc3 {[%clk 0:02:54]}  Nc6 {[%clk 0:02:56]} 8. Be3 {[%clk 0:02:52]}  Nf6 {[%clk 0:02:36]} 9. Ne2 {[%clk 0:02:50]}  d5 {[%clk 0:02:34]} 10. e5 {[%clk 0:02:49]}  Nd7 {[%clk 0:02:34]} 11. f4 {[%clk 0:02:45]}  a5 {[%clk 0:02:32]} 12. O-O {[%clk 0:02:43]}  g6 {[%clk 0:02:30]} 13. Rc1 {[%clk 0:02:37]}  O-O {[%clk 0:02:06]} 14. a3 {[%clk 0:02:21]}  Be7 {[%clk 0:02:05]} 15. Nb5 {[%clk 0:02:19]}  a4 {[%clk 0:01:56]} 16. g4 {[%clk 0:02:17]}  Na5 {[%clk 0:01:54]} 17. f5 {[%clk 0:01:59]}  Bg5 {[%clk 0:01:47]} 18. Qd2 {[%clk 0:01:57]}  Bxe3+ {[%clk 0:01:43]} 19. Qxe3 {[%clk 0:01:57]}  Nc4 {[%clk 0:01:28]} 20. Bxc4 {[%clk 0:01:54]}  dxc4 {[%clk 0:01:29]} 21. f6 {[%clk 0:01:54]}  Nxf6 {[%clk 0:01:22]} 22. exf6 {[%clk 0:01:51]}  Qd5 {[%clk 0:01:22]} 23. Kf2 {[%clk 0:01:44]}  g5 {[%clk 0:01:04]} 24. Ke1 {[%clk 0:01:38]}  Kh8 {[%clk 0:00:51]} 25. Nc7 {[%clk 0:01:36]}  Qa5+ {[%clk 0:00:47]} 26. Qc3 {[%clk 0:01:30]}  Ra7 {[%clk 0:00:22]} 27. Qxa5 {[%clk 0:01:19]}  Rxa5 {[%clk 0:00:23]} 28. Rxc4 {[%clk 0:01:18]}  Rc8 {[%clk 0:00:22]} 29. Rc3 {[%clk 0:01:10]}  h6 {[%clk 0:00:16]} 30. Rf2 {[%clk 0:01:09]}  Kh7 {[%clk 0:00:16]} 31. Nc1 {[%clk 0:00:58]}  Kg6 {[%clk 0:00:16]} 32. Nd3 {[%clk 0:00:56]}  h5 {[%clk 0:00:05]} 33. Ne5+ {[%clk 0:00:50]}  Kh7 {[%clk 0:00:05]} 34. gxh5 {[%clk 0:00:45]}  Kh6 {[%clk 0:00:05]} 35. Nxf7+ {[%clk 0:00:45]}  Kxh5 {[%clk 0:00:05]} 36. Ne5 {[%clk 0:00:42]}  Be4 {[%clk 0:00:02]} 37. Rh3# {[%clk 0:00:38]} 1-0


[Site "https://www.chess.com"]

[Event "Titled Tuesday Blitz October 5 2021"]
[White "Seul, Georg"]
[Black "Krysa, Leandro"]
[WhiteFideId "4601653"]
[BlackFideId "116807"]
[WhiteElo "2332"]
[BlackElo "2490"]
[Result "0-1"]
[Round "09"]
[TimeControl "180+1"]
[Date "2021.10.05"]
[WhiteClock "0:00:02"]
[BlackClock "0:00:04"]

1. e4 {[%clk 0:02:53]}  c5 {[%clk 0:02:59]} 2. Nf3 {[%clk 0:02:52]}  Nc6 {[%clk 0:02:59]} 3. Bb5 {[%clk 0:02:51]}  g6 {[%clk 0:02:57]} 4. Bxc6 {[%clk 0:02:51]}  bxc6 {[%clk 0:02:49]} 5. O-O {[%clk 0:02:51]}  Bg7 {[%clk 0:02:49]} 6. Re1 {[%clk 0:02:51]}  Qc7 {[%clk 0:02:45]} 7. e5 {[%clk 0:02:48]}  f6 {[%clk 0:02:42]} 8. exf6 {[%clk 0:02:40]}  Nxf6 {[%clk 0:02:43]} 9. Nc3 {[%clk 0:02:36]}  O-O {[%clk 0:02:39]} 10. Rxe7 {[%clk 0:02:23]}  Ng4 {[%clk 0:02:15]} 11. h3 {[%clk 0:02:18]}  Nh6 {[%clk 0:02:05]} 12. d3 {[%clk 0:01:55]}  Nf5 {[%clk 0:02:05]} 13. Re1 {[%clk 0:01:55]}  Nd4 {[%clk 0:02:05]} 14. Nxd4 {[%clk 0:01:54]}  cxd4 {[%clk 0:02:05]} 15. Ne4 {[%clk 0:01:53]}  d5 {[%clk 0:02:06]} 16. Nc5 {[%clk 0:01:44]}  Qd6 {[%clk 0:02:01]} 17. b4 {[%clk 0:01:43]}  a5 {[%clk 0:01:52]} 18. Bd2 {[%clk 0:01:43]}  Ra7 {[%clk 0:01:50]} 19. a3 {[%clk 0:01:43]}  Raf7 {[%clk 0:01:48]} 20. Re2 {[%clk 0:01:31]}  Be5 {[%clk 0:01:06]} 21. Qf1 {[%clk 0:01:28]}  Bg3 {[%clk 0:00:55]} 22. fxg3 {[%clk 0:00:24]}  Rxf1+ {[%clk 0:00:55]} 23. Rxf1 {[%clk 0:00:23]}  Rxf1+ {[%clk 0:00:55]} 24. Kxf1 {[%clk 0:00:23]}  axb4 {[%clk 0:00:27]} 25. axb4 {[%clk 0:00:22]}  Qd8 {[%clk 0:00:22]} 26. g4 {[%clk 0:00:21]}  h5 {[%clk 0:00:19]} 27. gxh5 {[%clk 0:00:20]}  gxh5 {[%clk 0:00:20]} 28. Rf2 {[%clk 0:00:20]}  Kg7 {[%clk 0:00:19]} 29. Bf4 {[%clk 0:00:19]}  Qe7 {[%clk 0:00:17]} 30. Kg1 {[%clk 0:00:16]}  Qe1+ {[%clk 0:00:12]} 31. Rf1 {[%clk 0:00:16]}  Qc3 {[%clk 0:00:11]} 32. Be5+ {[%clk 0:00:14]}  Kg8 {[%clk 0:00:12]} 33. Rf4 {[%clk 0:00:10]}  Qxb4 {[%clk 0:00:10]} 34. Bxd4 {[%clk 0:00:10]}  Qe1+ {[%clk 0:00:09]} 35. Kh2 {[%clk 0:00:10]}  h4 {[%clk 0:00:09]} 36. Bf2 {[%clk 0:00:09]}  Qd2 {[%clk 0:00:09]} 37. Rf3 {[%clk 0:00:06]}  Qxc2 {[%clk 0:00:09]} 38. d4 {[%clk 0:00:04]}  Qd1 {[%clk 0:00:06]} 39. Nd3 {[%clk 0:00:02]}  Ba6 {[%clk 0:00:04]} 40. Ne5 {[%clk 0:00:02]}  Bf1 {[%clk 0:00:04]} 0-1


[Site "https://www.chess.com"]

[Event "Titled Tuesday Blitz October 5 2021"]
[White "Skuhala, Barbara"]
[Black "ketster"]
[WhiteFideId "14605465"]
[WhiteElo "2121"]
[BlackElo "2548"]
[Result "0-1"]
[Round "09"]
[TimeControl "180+1"]
[Date "2021.10.05"]
[WhiteClock "0:01:00"]
[BlackClock "0:00:33"]

1. e4 {[%clk 0:03:00]}  e5 {[%clk 0:02:59]} 2. Nf3 {[%clk 0:02:58]}  Nc6 {[%clk 0:02:59]} 3. d4 {[%clk 0:02:58]}  exd4 {[%clk 0:02:59]} 4. Nxd4 {[%clk 0:02:59]}  Bc5 {[%clk 0:02:59]} 5. Nb3 {[%clk 0:02:58]}  Bb6 {[%clk 0:02:59]} 6. Nc3 {[%clk 0:02:58]}  Nf6 {[%clk 0:03:00]} 7. Qe2 {[%clk 0:02:58]}  a5 {[%clk 0:03:00]} 8. a4 {[%clk 0:02:58]}  O-O {[%clk 0:02:43]} 9. Be3 {[%clk 0:02:57]}  Bxe3 {[%clk 0:02:37]} 10. Qxe3 {[%clk 0:02:56]}  Nb4 {[%clk 0:02:36]} 11. O-O-O {[%clk 0:02:54]}  d6 {[%clk 0:02:35]} 12. f3 {[%clk 0:02:54]}  Bd7 {[%clk 0:02:31]} 13. Kb1 {[%clk 0:02:53]}  Qe8 {[%clk 0:02:29]} 14. Bb5 {[%clk 0:02:53]}  c6 {[%clk 0:01:58]} 15. Be2 {[%clk 0:02:48]}  d5 {[%clk 0:01:50]} 16. h4 {[%clk 0:02:35]}  dxe4 {[%clk 0:01:42]} 17. Nxe4 {[%clk 0:02:35]}  Nfd5 {[%clk 0:01:37]} 18. Qd2 {[%clk 0:02:34]}  Bf5 {[%clk 0:01:22]} 19. Bd3 {[%clk 0:02:10]}  Qe5 {[%clk 0:01:12]} 20. Rhe1 {[%clk 0:02:04]}  Qf4 {[%clk 0:01:07]} 21. Qxf4 {[%clk 0:01:22]}  Nxf4 {[%clk 0:01:07]} 22. Nf6+ {[%clk 0:01:22]}  gxf6 {[%clk 0:01:07]} 23. Bxf5 {[%clk 0:01:22]}  Rfe8 {[%clk 0:00:56]} 24. c3 {[%clk 0:01:14]}  Nbd5 {[%clk 0:00:44]} 25. Nc5 {[%clk 0:01:13]}  b6 {[%clk 0:00:40]} 26. Nd7 {[%clk 0:01:11]}  Kg7 {[%clk 0:00:34]} 27. c4 {[%clk 0:01:06]}  Ne3 {[%clk 0:00:33]} 28. Rd2 {[%clk 0:01:00]}  Nxf5 {[%clk 0:00:33]} 0-1


[Site "https://www.chess.com"]

[Event "Titled Tuesday Blitz October 5 2021"]
[White "Tarasova, Viktoriya"]
[Black "Balabayeva, Xeniya"]
[WhiteFideId "4175840"]
[BlackFideId "13719688"]
[WhiteElo "2182"]
[BlackElo "1965"]
[Result "0-1"]
[Round "09"]
[TimeControl "180+1"]
[Date "2021.10.05"]
[WhiteClock "0:00:13"]
[BlackClock "0:00:11"]

1. d4 {[%clk 0:03:00]}  d5 {[%clk 0:02:58]} 2. c4 {[%clk 0:03:00]}  e6 {[%clk 0:02:57]} 3. Nc3 {[%clk 0:02:59]}  a6 {[%clk 0:02:57]} 4. cxd5 {[%clk 0:02:59]}  exd5 {[%clk 0:02:58]} 5. Bf4 {[%clk 0:02:59]}  Nf6 {[%clk 0:02:48]} 6. e3 {[%clk 0:02:59]}  Bd6 {[%clk 0:02:47]} 7. Bxd6 {[%clk 0:02:57]}  Qxd6 {[%clk 0:02:47]} 8. Qc2 {[%clk 0:02:56]}  Nc6 {[%clk 0:02:30]} 9. a3 {[%clk 0:02:55]}  Ne7 {[%clk 0:02:30]} 10. Bd3 {[%clk 0:02:54]}  g6 {[%clk 0:02:24]} 11. Nf3 {[%clk 0:02:53]}  Bf5 {[%clk 0:02:19]} 12. O-O {[%clk 0:02:52]}  O-O {[%clk 0:02:06]} 13. Ne5 {[%clk 0:02:51]}  c6 {[%clk 0:01:52]} 14. f4 {[%clk 0:02:49]}  Rac8 {[%clk 0:01:42]} 15. b4 {[%clk 0:02:48]}  Nd7 {[%clk 0:01:30]} 16. Rae1 {[%clk 0:02:44]}  b6 {[%clk 0:01:06]} 17. Bxf5 {[%clk 0:02:29]}  Nxf5 {[%clk 0:01:05]} 18. Qd3 {[%clk 0:02:29]}  a5 {[%clk 0:00:40]} 19. Rb1 {[%clk 0:02:28]}  axb4 {[%clk 0:00:39]} 20. axb4 {[%clk 0:02:27]}  c5 {[%clk 0:00:26]} 21. Nb5 {[%clk 0:01:35]}  Qe6 {[%clk 0:00:18]} 22. bxc5 {[%clk 0:00:56]}  bxc5 {[%clk 0:00:18]} 23. Nxd7 {[%clk 0:00:47]}  Qxd7 {[%clk 0:00:18]} 24. dxc5 {[%clk 0:00:48]}  Rxc5 {[%clk 0:00:17]} 25. Nd4 {[%clk 0:00:47]}  Nxd4 {[%clk 0:00:16]} 26. Qxd4 {[%clk 0:00:47]}  Rfc8 {[%clk 0:00:17]} 27. Rfd1 {[%clk 0:00:45]}  Qe6 {[%clk 0:00:17]} 28. h3 {[%clk 0:00:40]}  Rc3 {[%clk 0:00:15]} 29. Re1 {[%clk 0:00:37]}  R3c4 {[%clk 0:00:15]} 30. Qd3 {[%clk 0:00:36]}  Re4 {[%clk 0:00:15]} 31. Rbd1 {[%clk 0:00:32]}  d4 {[%clk 0:00:14]} 32. Kf2 {[%clk 0:00:23]}  Re8 {[%clk 0:00:13]} 33. g3 {[%clk 0:00:19]}  dxe3+ {[%clk 0:00:11]} 34. Kg2 {[%clk 0:00:20]}  Qc6 {[%clk 0:00:11]} 35. Re2 {[%clk 0:00:20]}  Rd4+ {[%clk 0:00:10]} 36. Kh2 {[%clk 0:00:12]}  Rxd3 {[%clk 0:00:11]} 37. Rxd3 {[%clk 0:00:13]}  Qf3 {[%clk 0:00:11]} 0-1


[Site "https://www.chess.com"]

[Event "Titled Tuesday Blitz October 5 2021"]
[White "Viani Antonio Dcunha"]
[Black "Arabidze, Meri"]
[WhiteFideId "5027330"]
[BlackFideId "13604040"]
[WhiteElo "2366"]
[BlackElo "2432"]
[Result "0-1"]
[Round "09"]
[TimeControl "180+1"]
[Date "2021.10.05"]
[WhiteClock "0:00:10"]
[BlackClock "0:00:22"]

1. e4 {[%clk 0:03:00]}  c5 {[%clk 0:02:57]} 2. Nf3 {[%clk 0:02:59]}  e6 {[%clk 0:02:58]} 3. d4 {[%clk 0:02:59]}  cxd4 {[%clk 0:02:59]} 4. Nxd4 {[%clk 0:02:59]}  Nc6 {[%clk 0:02:59]} 5. Nc3 {[%clk 0:02:58]}  a6 {[%clk 0:02:59]} 6. Be3 {[%clk 0:02:50]}  Nf6 {[%clk 0:02:59]} 7. f4 {[%clk 0:02:38]}  Bb4 {[%clk 0:02:56]} 8. Bd3 {[%clk 0:02:25]}  e5 {[%clk 0:02:51]} 9. fxe5 {[%clk 0:02:02]}  Nxe5 {[%clk 0:02:49]} 10. O-O {[%clk 0:01:59]}  Neg4 {[%clk 0:02:40]} 11. Bf4 {[%clk 0:01:49]}  Bc5 {[%clk 0:02:27]} 12. Ne2 {[%clk 0:01:45]}  d5 {[%clk 0:01:58]} 13. e5 {[%clk 0:01:41]}  Nh5 {[%clk 0:01:49]} 14. h3 {[%clk 0:01:20]}  Nxf4 {[%clk 0:01:43]} 15. Rxf4 {[%clk 0:01:21]}  Nxe5 {[%clk 0:01:41]} 16. Kh1 {[%clk 0:01:09]}  O-O {[%clk 0:01:40]} 17. Ng3 {[%clk 0:01:04]}  Ng6 {[%clk 0:01:27]} 18. Bxg6 {[%clk 0:00:53]}  hxg6 {[%clk 0:01:28]} 19. Qd3 {[%clk 0:00:48]}  Qb6 {[%clk 0:01:20]} 20. Nb3 {[%clk 0:00:41]}  Be6 {[%clk 0:01:21]} 21. Nxc5 {[%clk 0:00:39]}  Qxc5 {[%clk 0:01:21]} 22. Ne2 {[%clk 0:00:36]}  Bf5 {[%clk 0:01:18]} 23. Qc3 {[%clk 0:00:33]}  Qxc3 {[%clk 0:01:16]} 24. Nxc3 {[%clk 0:00:34]}  Rfd8 {[%clk 0:01:11]} 25. Rd1 {[%clk 0:00:32]}  Bxc2 {[%clk 0:00:54]} 26. Rxd5 {[%clk 0:00:31]}  Rxd5 {[%clk 0:00:52]} 27. Nxd5 {[%clk 0:00:32]}  Rd8 {[%clk 0:00:52]} 28. Rc4 {[%clk 0:00:23]}  Bb1 {[%clk 0:00:43]} 29. Nc3 {[%clk 0:00:22]}  Bf5 {[%clk 0:00:43]} 30. Rc7 {[%clk 0:00:21]}  Rd7 {[%clk 0:00:43]} 31. Rxd7 {[%clk 0:00:17]}  Bxd7 {[%clk 0:00:44]} 32. Kh2 {[%clk 0:00:15]}  Bc6 {[%clk 0:00:43]} 33. Kg3 {[%clk 0:00:15]}  f6 {[%clk 0:00:44]} 34. Kf2 {[%clk 0:00:14]}  Kf7 {[%clk 0:00:45]} 35. g3 {[%clk 0:00:15]}  g5 {[%clk 0:00:44]} 36. Ke3 {[%clk 0:00:14]}  Ke6 {[%clk 0:00:44]} 37. Ne2 {[%clk 0:00:13]}  Bd5 {[%clk 0:00:41]} 38. a3 {[%clk 0:00:12]}  Ke5 {[%clk 0:00:40]} 39. b4 {[%clk 0:00:11]}  Bg2 {[%clk 0:00:39]} 40. h4 {[%clk 0:00:11]}  gxh4 {[%clk 0:00:39]} 41. gxh4 {[%clk 0:00:12]}  Be4 {[%clk 0:00:32]} 42. Ng3 {[%clk 0:00:10]}  Bg6 {[%clk 0:00:32]} 43. Ne2 {[%clk 0:00:08]}  Bf7 {[%clk 0:00:30]} 44. Nd4 {[%clk 0:00:08]}  g5 {[%clk 0:00:28]} 45. hxg5 {[%clk 0:00:07]}  fxg5 {[%clk 0:00:29]} 46. Nf3+ {[%clk 0:00:07]}  Kf5 {[%clk 0:00:29]} 47. Nd4+ {[%clk 0:00:07]}  Kg4 {[%clk 0:00:28]} 48. Ke4 {[%clk 0:00:08]}  Kh3 {[%clk 0:00:25]} 49. Ke5 {[%clk 0:00:07]}  g4 {[%clk 0:00:24]} 50. Kf6 {[%clk 0:00:04]}  Bd5 {[%clk 0:00:23]} 51. Ke5 {[%clk 0:00:04]}  Bc6 {[%clk 0:00:20]} 52. Kf4 {[%clk 0:00:01]}  g3 {[%clk 0:00:20]} 53. Ne2 {[%clk 0:00:02]}  g2 {[%clk 0:00:20]} 54. Ke3 {[%clk 0:00:02]}  Kg4 {[%clk 0:00:18]} 55. Kf2 {[%clk 0:00:02]}  Kf5 {[%clk 0:00:18]} 56. Nd4+ {[%clk 0:00:02]}  Ke4 {[%clk 0:00:18]} 57. Nxc6 {[%clk 0:00:03]}  bxc6 {[%clk 0:00:18]} 58. Kxg2 {[%clk 0:00:04]}  Kd4 {[%clk 0:00:19]} 59. Kf3 {[%clk 0:00:04]}  Kc4 {[%clk 0:00:19]} 60. Ke4 {[%clk 0:00:05]}  Kb3 {[%clk 0:00:20]} 61. Kd4 {[%clk 0:00:05]}  Kxa3 {[%clk 0:00:20]} 62. Kc5 {[%clk 0:00:06]}  Kb3 {[%clk 0:00:20]} 63. Kxc6 {[%clk 0:00:07]}  Kxb4 {[%clk 0:00:20]} 64. Kd5 {[%clk 0:00:08]}  a5 {[%clk 0:00:20]} 65. Kd4 {[%clk 0:00:08]}  a4 {[%clk 0:00:21]} 66. Kd3 {[%clk 0:00:09]}  Kb3 {[%clk 0:00:21]} 67. Kd2 {[%clk 0:00:10]}  Kb2 {[%clk 0:00:22]} 0-1


[Site "https://www.chess.com"]

[Event "Titled Tuesday Blitz October 5 2021"]
[White "Vokhidov, Shamsiddin"]
[Black "Wagner, Dennis"]
[WhiteFideId "14204223"]
[BlackFideId "24650684"]
[WhiteElo "2876"]
[BlackElo "2799"]
[Result "1-0"]
[Round "09"]
[TimeControl "180+1"]
[Date "2021.10.05"]
[WhiteClock "0:00:21"]
[BlackClock "0:00:02"]

1. e4 {[%clk 0:03:00]}  e5 {[%clk 0:03:00]} 2. Nf3 {[%clk 0:03:00]}  Nc6 {[%clk 0:03:00]} 3. Bb5 {[%clk 0:03:01]}  a6 {[%clk 0:03:01]} 4. Ba4 {[%clk 0:03:01]}  Nf6 {[%clk 0:03:01]} 5. O-O {[%clk 0:03:01]}  b5 {[%clk 0:03:01]} 6. Bb3 {[%clk 0:03:01]}  Bc5 {[%clk 0:03:02]} 7. c3 {[%clk 0:03:00]}  d6 {[%clk 0:03:00]} 8. d4 {[%clk 0:02:59]}  Bb6 {[%clk 0:03:01]} 9. Be3 {[%clk 0:02:57]}  Bg4 {[%clk 0:02:59]} 10. dxe5 {[%clk 0:02:21]}  Nxe5 {[%clk 0:02:56]} 11. Bxb6 {[%clk 0:02:21]}  Bxf3 {[%clk 0:02:51]} 12. gxf3 {[%clk 0:02:22]}  cxb6 {[%clk 0:02:51]} 13. f4 {[%clk 0:02:21]}  Ng6 {[%clk 0:02:50]} 14. f5 {[%clk 0:02:21]}  Nf4 {[%clk 0:02:30]} 15. Qf3 {[%clk 0:02:19]}  N6h5 {[%clk 0:02:28]} 16. Nd2 {[%clk 0:02:13]}  Qh4 {[%clk 0:02:07]} 17. Kh1 {[%clk 0:02:12]}  O-O {[%clk 0:02:05]} 18. Rg1 {[%clk 0:02:06]}  Nh3 {[%clk 0:01:48]} 19. Rg2 {[%clk 0:02:06]}  N5f4 {[%clk 0:01:46]} 20. Rg3 {[%clk 0:02:05]}  Rfe8 {[%clk 0:01:36]} 21. Rf1 {[%clk 0:01:56]}  h5 {[%clk 0:01:26]} 22. Qe3 {[%clk 0:01:51]}  d5 {[%clk 0:01:11]} 23. e5 {[%clk 0:01:45]}  a5 {[%clk 0:00:58]} 24. Nf3 {[%clk 0:01:43]}  Qd8 {[%clk 0:00:49]} 25. a3 {[%clk 0:01:35]}  Qc7 {[%clk 0:00:28]} 26. Re1 {[%clk 0:01:19]}  Qc5 {[%clk 0:00:26]} 27. Nd4 {[%clk 0:01:17]}  Nd3 {[%clk 0:00:11]} 28. Rxh3 {[%clk 0:01:08]}  Rxe5 {[%clk 0:00:11]} 29. Qxe5 {[%clk 0:01:04]}  Nxe5 {[%clk 0:00:12]} 30. Rxe5 {[%clk 0:01:05]}  Rd8 {[%clk 0:00:10]} 31. f6 {[%clk 0:00:59]}  g6 {[%clk 0:00:05]} 32. Rhe3 {[%clk 0:00:59]}  b4 {[%clk 0:00:04]} 33. a4 {[%clk 0:00:37]}  bxc3 {[%clk 0:00:03]} 34. bxc3 {[%clk 0:00:38]}  Rd6 {[%clk 0:00:03]} 35. Rf3 {[%clk 0:00:31]}  Qa3 {[%clk 0:00:04]} 36. Kg2 {[%clk 0:00:27]}  Qc1 {[%clk 0:00:03]} 37. Bxd5 {[%clk 0:00:22]}  h4 {[%clk 0:00:02]} 38. h3 {[%clk 0:00:21]} 1-0


[Site "https://www.chess.com"]